[Event "*** SCC Grand Prix: Titled Tuesday Blitz"]
[Site "Chess.com"]
[Date "2020.07.07"]
[Round "4"]
[White "Ole83"]
[Black "FMVolodymyrSakun"]
[Result "0-1"]
[WhiteElo "2319"]
[BlackElo "2510"]
[TimeControl "180+1"]
[EndTime "10:38:21 PDT"]
[Termination "FMVolodymyrSakun won on time"]

1. c4 {[%clk 0:03:00.4]} 1... Nf6 {[%clk 0:02:59.6]} 2. Nc3 {[%clk 0:02:58.9]}
2... g6 {[%clk 0:02:59.6]} 3. g3 {[%clk 0:02:58.6]} 3... Bg7 {[%clk 0:02:59.6]}
4. Bg2 {[%clk 0:02:59.2]} 4... O-O {[%clk 0:03:00.2]} 5. e4 {[%clk 0:02:59.2]}
5... d6 {[%clk 0:03:00.1]} 6. Nge2 {[%clk 0:02:59.3]} 6... e5 {[%clk 0:02:58]}
7. O-O {[%clk 0:02:59.6]} 7... Nc6 {[%clk 0:02:57.8]} 8. d3 {[%clk 0:02:59.5]}
8... Ne8 {[%clk 0:02:52.3]} 9. Nd5 {[%clk 0:02:55.7]} 9... Ne7 {[%clk
0:02:46.7]} 10. Bg5 {[%clk 0:02:46.8]} 10... f6 {[%clk 0:02:44.6]} 11. Be3
{[%clk 0:02:40.1]} 11... c6 {[%clk 0:02:42.8]} 12. Nxe7+ {[%clk 0:02:28.3]}
12... Qxe7 {[%clk 0:02:43]} 13. d4 {[%clk 0:02:06.6]} 13... f5 {[%clk
0:02:42.2]} 14. Qd2 {[%clk 0:01:53.8]} 14... exd4 {[%clk 0:02:34.6]} 15. Bxd4
{[%clk 0:01:35.4]} 15... fxe4 {[%clk 0:02:32.4]} 16. Bxg7 {[%clk 0:01:24]} 16...
Kxg7 {[%clk 0:02:32.1]} 17. Nc3 {[%clk 0:01:15.1]} 17... Nf6 {[%clk 0:02:19.2]}
18. Rae1 {[%clk 0:01:04.8]} 18... d5 {[%clk 0:01:38.8]} 19. cxd5 {[%clk
0:00:45.9]} 19... cxd5 {[%clk 0:01:39]} 20. Nxd5 {[%clk 0:00:38.3]} 20... Rd8
{[%clk 0:01:37.7]} 21. Nxe7 {[%clk 0:00:29.4]} 21... Rxd2 {[%clk 0:01:37.6]} 22.
Nxc8 {[%clk 0:00:07.2]} 22... Rxc8 {[%clk 0:01:36.9]} 0-1

[Event "*** SCC Grand Prix: Titled Tuesday Blitz"]
[Site "Chess.com"]
[Date "2020.07.07"]
[Round "4"]
[White "DrVelja"]
[Black "Matveev_Vladimir"]
[Result "0-1"]
[WhiteElo "2781"]
[BlackElo "2550"]
[TimeControl "180+1"]
[EndTime "10:38:26 PDT"]
[Termination "Matveev_Vladimir won by checkmate"]

1. e4 {[%clk 0:03:00.9]} 1... d6 {[%clk 0:02:58.5]} 2. d4 {[%clk 0:03:00.9]}
2... g6 {[%clk 0:02:59.1]} 3. Nc3 {[%clk 0:03:00.9]} 3... Bg7 {[%clk 0:02:59.6]}
4. Be3 {[%clk 0:03:00.6]} 4... a6 {[%clk 0:02:56.3]} 5. Qd2 {[%clk 0:02:57.6]}
5... b5 {[%clk 0:02:56.2]} 6. f3 {[%clk 0:02:57.2]} 6... Bb7 {[%clk 0:02:54.1]}
7. O-O-O {[%clk 0:02:57.3]} 7... Nd7 {[%clk 0:02:50.9]} 8. h4 {[%clk 0:02:57.2]}
8... h5 {[%clk 0:02:50.7]} 9. Nh3 {[%clk 0:02:57.7]} 9... Rc8 {[%clk 0:02:50.9]}
10. Ng5 {[%clk 0:02:55.5]} 10... c5 {[%clk 0:02:49.8]} 11. dxc5 {[%clk 0:02:56]}
11... Nxc5 {[%clk 0:02:50.7]} 12. Kb1 {[%clk 0:02:56.3]} 12... Qa5 {[%clk
0:02:36.9]} 13. Bd4 {[%clk 0:02:33.9]} 13... Nf6 {[%clk 0:02:34.9]} 14. a3
{[%clk 0:00:44.4]} 14... O-O {[%clk 0:02:18.7]} 15. e5 {[%clk 0:00:37.5]} 15...
dxe5 {[%clk 0:01:12.4]} 16. Bxc5 {[%clk 0:00:37.3]} 16... Rxc5 {[%clk
0:01:13.3]} 17. b4 {[%clk 0:00:37.5]} 17... Qxa3 {[%clk 0:01:13.8]} 18. bxc5
{[%clk 0:00:38.1]} 18... e4 {[%clk 0:01:14.3]} 19. Na2 {[%clk 0:00:21.1]} 19...
Nd5 {[%clk 0:01:02.6]} 20. Nxe4 {[%clk 0:00:21.2]} 20... f5 {[%clk 0:00:59.2]}
21. Qd3 {[%clk 0:00:16.5]} 21... Qb2# {[%clk 0:00:59.1]} 0-1

[Event "*** SCC Grand Prix: Titled Tuesday Blitz"]
[Site "Chess.com"]
[Date "2020.07.07"]
[Round "4"]
[White "Korchmar_Vasiliy"]
[Black "amylazy"]
[Result "1-0"]
[WhiteElo "2615"]
[BlackElo "2438"]
[TimeControl "180+1"]
[EndTime "10:38:26 PDT"]
[Termination "Korchmar_Vasiliy won by resignation"]

1. d4 {[%clk 0:03:00.9]} 1... Nf6 {[%clk 0:02:59.8]} 2. c4 {[%clk 0:03:00]} 2...
g6 {[%clk 0:03:00.1]} 3. Nc3 {[%clk 0:02:59.8]} 3... d5 {[%clk 0:03:00.5]} 4.
Nf3 {[%clk 0:02:59.5]} 4... Bg7 {[%clk 0:03:00.4]} 5. Bf4 {[%clk 0:03:00.1]}
5... O-O {[%clk 0:03:00.1]} 6. e3 {[%clk 0:03:00.6]} 6... c5 {[%clk 0:03:00.4]}
7. dxc5 {[%clk 0:03:01.5]} 7... Qa5 {[%clk 0:03:00.2]} 8. Rc1 {[%clk 0:03:01]}
8... dxc4 {[%clk 0:02:59.4]} 9. Bxc4 {[%clk 0:03:01.9]} 9... Qxc5 {[%clk
0:02:59.7]} 10. Bb3 {[%clk 0:03:02.5]} 10... Nc6 {[%clk 0:03:00.2]} 11. O-O
{[%clk 0:03:02.2]} 11... Qa5 {[%clk 0:03:00.5]} 12. h3 {[%clk 0:03:02]} 12...
Qh5 {[%clk 0:02:56.1]} 13. Qe2 {[%clk 0:02:41.8]} 13... e5 {[%clk 0:02:32.4]}
14. Bh2 {[%clk 0:02:39.2]} 14... e4 {[%clk 0:02:32.3]} 15. Nd4 {[%clk
0:02:27.2]} 15... Nxd4 {[%clk 0:02:30.4]} 16. Qxh5 {[%clk 0:02:27]} 16... Nf3+
{[%clk 0:01:57.5]} 17. gxf3 {[%clk 0:02:10]} 17... Nxh5 {[%clk 0:01:57.3]} 18.
fxe4 {[%clk 0:02:01.5]} 18... Bxh3 {[%clk 0:01:57.2]} 19. Rfd1 {[%clk 0:02:02]}
19... Bg4 {[%clk 0:01:46.7]} 20. Rd2 {[%clk 0:01:55.2]} 20... Bf3 {[%clk
0:01:46.2]} 21. Rd7 {[%clk 0:01:29.7]} 21... Rac8 {[%clk 0:01:39.1]} 22. Bd6
{[%clk 0:01:01.4]} 22... Rfd8 {[%clk 0:01:22.4]} 23. Rxf7 {[%clk 0:00:57.3]}
23... Kh8 {[%clk 0:01:22.5]} 24. e5 {[%clk 0:00:40.6]} 24... b5 {[%clk
0:01:22.3]} 25. Rxf3 {[%clk 0:00:39.2]} 25... a5 {[%clk 0:01:12.7]} 26. Ne2
{[%clk 0:00:38.2]} 26... Rxc1+ {[%clk 0:01:11.6]} 27. Nxc1 {[%clk 0:00:39.1]}
27... a4 {[%clk 0:01:12.2]} 28. Be6 {[%clk 0:00:35.4]} 28... h6 {[%clk 0:01:12]}
29. Nd3 {[%clk 0:00:34.8]} 29... g5 {[%clk 0:01:11.9]} 30. Nc5 {[%clk
0:00:31.2]} 1-0

[Event "*** SCC Grand Prix: Titled Tuesday Blitz"]
[Site "Chess.com"]
[Date "2020.07.07"]
[Round "4"]
[White "Konek-Gorbunok"]
[Black "crazychessbr"]
[Result "1-0"]
[WhiteElo "2288"]
[BlackElo "2070"]
[TimeControl "180+1"]
[EndTime "10:38:30 PDT"]
[Termination "Konek-Gorbunok won by resignation"]

1. d4 {[%clk 0:03:00.9]} 1... Nf6 {[%clk 0:02:59.6]} 2. Nf3 {[%clk 0:03:01.8]}
2... g6 {[%clk 0:02:59.6]} 3. c4 {[%clk 0:03:01.2]} 3... Bg7 {[%clk 0:03:00.2]}
4. Nc3 {[%clk 0:03:01.5]} 4... O-O {[%clk 0:03:00.8]} 5. e4 {[%clk 0:03:01.7]}
5... d6 {[%clk 0:03:01.2]} 6. Be2 {[%clk 0:03:02.6]} 6... Nc6 {[%clk 0:03:00.4]}
7. d5 {[%clk 0:03:02.4]} 7... Nb8 {[%clk 0:02:59.6]} 8. O-O {[%clk 0:03:01.8]}
8... e5 {[%clk 0:02:59.7]} 9. Be3 {[%clk 0:03:01.4]} 9... a5 {[%clk 0:02:58.9]}
10. Ne1 {[%clk 0:02:54.9]} 10... Na6 {[%clk 0:02:56.9]} 11. Nd3 {[%clk
0:02:53.8]} 11... b6 {[%clk 0:02:55.9]} 12. f3 {[%clk 0:02:49.5]} 12... Nc5
{[%clk 0:02:54]} 13. a3 {[%clk 0:02:41.6]} 13... Ba6 {[%clk 0:02:46.5]} 14. b4
{[%clk 0:02:31.5]} 14... Nxd3 {[%clk 0:02:34.6]} 15. Bxd3 {[%clk 0:02:31.6]}
15... Nh5 {[%clk 0:02:34.2]} 16. bxa5 {[%clk 0:02:22.6]} 16... bxa5 {[%clk
0:02:32.3]} 17. c5 {[%clk 0:02:21.5]} 17... Bxd3 {[%clk 0:02:26.6]} 18. Qxd3
{[%clk 0:02:20.5]} 18... Nf4 {[%clk 0:02:26.7]} 19. Qc2 {[%clk 0:02:11.6]} 19...
Qg5 {[%clk 0:02:19]} 20. Kh1 {[%clk 0:02:02.6]} 20... Qe7 {[%clk 0:02:04.8]} 21.
Nb5 {[%clk 0:01:58.2]} 21... a4 {[%clk 0:01:52]} 22. Rfc1 {[%clk 0:01:49.6]}
22... Ra6 {[%clk 0:01:22.6]} 23. Rab1 {[%clk 0:01:35.9]} 23... Bh6 {[%clk
0:01:12.7]} 24. g3 {[%clk 0:01:11]} 24... Qf6 {[%clk 0:00:56.1]} 25. gxf4 {[%clk
0:01:06.7]} 25... exf4 {[%clk 0:00:56.3]} 26. Bd4 {[%clk 0:00:55.8]} 26... Qh4
{[%clk 0:00:52.1]} 27. Nxc7 {[%clk 0:00:51.3]} 27... Qh3 {[%clk 0:00:51.8]} 28.
Qg2 {[%clk 0:00:48.2]} 1-0

[Event "*** SCC Grand Prix: Titled Tuesday Blitz"]
[Site "Chess.com"]
[Date "2020.07.07"]
[Round "4"]
[White "bratkoo"]
[Black "Bigfish1995"]
[Result "0-1"]
[WhiteElo "2449"]
[BlackElo "3046"]
[TimeControl "180+1"]
[EndTime "10:38:33 PDT"]
[Termination "Bigfish1995 won by checkmate"]

1. e4 {[%clk 0:03:00.9]} 1... c5 {[%clk 0:02:23.4]} 2. Nf3 {[%clk 0:03:00.5]}
2... d6 {[%clk 0:02:23.9]} 3. d4 {[%clk 0:03:00.8]} 3... cxd4 {[%clk 0:02:24.4]}
4. Nxd4 {[%clk 0:03:00.1]} 4... Nf6 {[%clk 0:02:25]} 5. Nc3 {[%clk 0:02:59.1]}
5... a6 {[%clk 0:02:25.7]} 6. f3 {[%clk 0:02:59.6]} 6... g6 {[%clk 0:02:24]} 7.
Be3 {[%clk 0:02:59.2]} 7... Bg7 {[%clk 0:02:24.5]} 8. Qd2 {[%clk 0:02:59.7]}
8... h5 {[%clk 0:02:24.5]} 9. O-O-O {[%clk 0:02:59.7]} 9... Nbd7 {[%clk
0:02:24.8]} 10. Kb1 {[%clk 0:02:52.1]} 10... Qc7 {[%clk 0:02:23.8]} 11. Be2
{[%clk 0:02:46.8]} 11... b5 {[%clk 0:02:23.9]} 12. Rhe1 {[%clk 0:02:41.9]} 12...
Bb7 {[%clk 0:02:23.7]} 13. Bg5 {[%clk 0:02:38.9]} 13... Rc8 {[%clk 0:02:23.1]}
14. a3 {[%clk 0:02:33.9]} 14... O-O {[%clk 0:02:06.6]} 15. h4 {[%clk 0:02:12.1]}
15... e6 {[%clk 0:01:59.7]} 16. Ndxb5 {[%clk 0:02:01.4]} 16... axb5 {[%clk
0:01:59]} 17. Nxb5 {[%clk 0:02:02]} 17... Qb8 {[%clk 0:01:53]} 18. Nxd6 {[%clk
0:02:00.6]} 18... Rc7 {[%clk 0:01:46.9]} 19. Qb4 {[%clk 0:01:40.3]} 19... Bc6
{[%clk 0:01:37.3]} 20. Bb5 {[%clk 0:01:32.8]} 20... Bxb5 {[%clk 0:01:35.2]} 21.
Nxb5 {[%clk 0:01:31.5]} 21... Rb7 {[%clk 0:01:33.1]} 22. a4 {[%clk 0:01:30.6]}
22... Rc8 {[%clk 0:01:33.2]} 23. Be3 {[%clk 0:01:21.5]} 23... Bf8 {[%clk
0:01:31.8]} 24. Qd2 {[%clk 0:01:11.5]} 24... Nc5 {[%clk 0:01:23.5]} 25. Bxc5
{[%clk 0:00:48.3]} 25... Bxc5 {[%clk 0:01:22]} 26. e5 {[%clk 0:00:39.8]} 26...
Nd5 {[%clk 0:01:21.3]} 27. g4 {[%clk 0:00:39.8]} 27... Qa8 {[%clk 0:01:17.6]}
28. Re4 {[%clk 0:00:36.3]} 28... Rd8 {[%clk 0:01:10.8]} 29. Qg5 {[%clk
0:00:24.8]} 29... Rxb5 {[%clk 0:01:08.2]} 30. axb5 {[%clk 0:00:24.8]} 30... Nc3+
{[%clk 0:01:07.4]} 31. bxc3 {[%clk 0:00:25.4]} 31... Rxd1+ {[%clk 0:01:07.8]}
32. Kb2 {[%clk 0:00:26.3]} 32... Qa3# {[%clk 0:01:07.9]} 0-1

[Event "*** SCC Grand Prix: Titled Tuesday Blitz"]
[Site "Chess.com"]
[Date "2020.07.07"]
[Round "4"]
[White "PattyCastillo"]
[Black "Matols"]
[Result "0-1"]
[WhiteElo "1943"]
[BlackElo "2173"]
[TimeControl "180+1"]
[EndTime "10:38:41 PDT"]
[Termination "Matols won by checkmate"]

1. d4 {[%clk 0:02:58.6]} 1... Nf6 {[%clk 0:02:59.2]} 2. Nf3 {[%clk 0:02:56.8]}
2... e6 {[%clk 0:02:59.1]} 3. e3 {[%clk 0:02:54.9]} 3... d5 {[%clk 0:02:58.7]}
4. Bd3 {[%clk 0:02:50.9]} 4... c5 {[%clk 0:02:58.2]} 5. b3 {[%clk 0:02:50]} 5...
Nc6 {[%clk 0:02:57.9]} 6. Bb2 {[%clk 0:02:49.8]} 6... Bd6 {[%clk 0:02:57.7]} 7.
Nbd2 {[%clk 0:02:48.1]} 7... O-O {[%clk 0:02:57.4]} 8. O-O {[%clk 0:02:48.3]}
8... b6 {[%clk 0:02:56.9]} 9. Ne5 {[%clk 0:02:45.4]} 9... Bb7 {[%clk 0:02:55.4]}
10. a3 {[%clk 0:02:43.6]} 10... Rc8 {[%clk 0:02:54.2]} 11. Rc1 {[%clk 0:02:43]}
11... Nd7 {[%clk 0:02:50.4]} 12. f4 {[%clk 0:02:41.8]} 12... f6 {[%clk
0:02:46.4]} 13. Nxd7 {[%clk 0:02:39.8]} 13... Qxd7 {[%clk 0:02:46]} 14. c4
{[%clk 0:02:38.1]} 14... cxd4 {[%clk 0:02:43]} 15. exd4 {[%clk 0:02:34.5]} 15...
Ne7 {[%clk 0:02:41.9]} 16. Qh5 {[%clk 0:02:03.7]} 16... g6 {[%clk 0:02:38.9]}
17. Qg4 {[%clk 0:01:38.5]} 17... Nf5 {[%clk 0:02:31]} 18. Rce1 {[%clk
0:01:26.2]} 18... Rfe8 {[%clk 0:02:27.3]} 19. h4 {[%clk 0:01:16.4]} 19... Bf8
{[%clk 0:01:57.8]} 20. h5 {[%clk 0:01:14.3]} 20... Qf7 {[%clk 0:01:51.4]} 21.
hxg6 {[%clk 0:01:11.6]} 21... hxg6 {[%clk 0:01:49.8]} 22. Nf3 {[%clk 0:00:35.6]}
22... Kg7 {[%clk 0:01:44.7]} 23. Nh4 {[%clk 0:00:34.6]} 23... Nxh4 {[%clk
0:01:38.7]} 24. Qxh4 {[%clk 0:00:35.5]} 24... Bd6 {[%clk 0:01:36]} 25. f5 {[%clk
0:00:26.1]} 25... exf5 {[%clk 0:01:32.7]} 26. c5 {[%clk 0:00:16]} 26... bxc5
{[%clk 0:01:30.9]} 27. dxc5 {[%clk 0:00:15.9]} 27... Bxc5+ {[%clk 0:01:31.1]}
28. Bd4 {[%clk 0:00:11.8]} 28... Rh8 {[%clk 0:01:24.2]} 29. Qf2 {[%clk
0:00:08.5]} 29... Qc7 {[%clk 0:01:18.9]} 30. Bxc5 {[%clk 0:00:04.4]} 30... Qh2#
{[%clk 0:01:17.8]} 0-1

[Event "*** SCC Grand Prix: Titled Tuesday Blitz"]
[Site "Chess.com"]
[Date "2020.07.07"]
[Round "4"]
[White "KejJaj"]
[Black "CzechmVIII"]
[Result "0-1"]
[WhiteElo "2010"]
[BlackElo "2196"]
[TimeControl "180+1"]
[EndTime "10:38:42 PDT"]
[Termination "CzechmVIII won by resignation"]

1. d4 {[%clk 0:03:00.9]} 1... Nf6 {[%clk 0:02:59.3]} 2. Bf4 {[%clk 0:03:00.5]}
2... c5 {[%clk 0:02:59.1]} 3. d5 {[%clk 0:02:59.8]} 3... d6 {[%clk 0:02:53.7]}
4. Nc3 {[%clk 0:03:00]} 4... g6 {[%clk 0:02:53.7]} 5. e4 {[%clk 0:02:59.5]} 5...
Bg7 {[%clk 0:02:53.2]} 6. Nf3 {[%clk 0:02:56.7]} 6... O-O {[%clk 0:02:53.1]} 7.
a4 {[%clk 0:02:55]} 7... Bg4 {[%clk 0:02:48]} 8. h3 {[%clk 0:02:54.4]} 8... Bxf3
{[%clk 0:02:48.1]} 9. Qxf3 {[%clk 0:02:55.1]} 9... Nfd7 {[%clk 0:02:43.9]} 10.
Be2 {[%clk 0:02:54.2]} 10... Ne5 {[%clk 0:02:41.2]} 11. Qg3 {[%clk 0:02:52.7]}
11... Na6 {[%clk 0:02:29.5]} 12. h4 {[%clk 0:02:47.7]} 12... Nb4 {[%clk
0:02:26.8]} 13. Rc1 {[%clk 0:02:42]} 13... e6 {[%clk 0:02:24.3]} 14. h5 {[%clk
0:02:38.1]} 14... exd5 {[%clk 0:02:23.5]} 15. exd5 {[%clk 0:02:32.9]} 15... Re8
{[%clk 0:02:15.5]} 16. hxg6 {[%clk 0:02:23.4]} 16... hxg6 {[%clk 0:01:47.2]} 17.
Qh3 {[%clk 0:02:17.4]} 17... Qf6 {[%clk 0:01:40.3]} 18. Qh7+ {[%clk 0:02:03.4]}
18... Kf8 {[%clk 0:01:40.3]} 19. Be3 {[%clk 0:01:54.9]} 19... Qf5 {[%clk
0:01:15.3]} 20. O-O {[%clk 0:01:35.3]} 20... Ng4 {[%clk 0:01:01.9]} 21. Bxg4
{[%clk 0:01:29.9]} 21... Qxg4 {[%clk 0:01:01.9]} 22. Bh6 {[%clk 0:01:27.4]}
22... Bxh6 {[%clk 0:01:01.2]} 23. Qxh6+ {[%clk 0:01:27]} 23... Kg8 {[%clk
0:01:01.6]} 24. Nb5 {[%clk 0:01:22.4]} 24... Qd7 {[%clk 0:00:54.8]} 25. c4
{[%clk 0:01:17.4]} 25... a6 {[%clk 0:00:55]} 26. Na3 {[%clk 0:01:12.2]} 26...
Nd3 {[%clk 0:00:52.9]} 27. Rc3 {[%clk 0:01:10.5]} 27... Qf5 {[%clk 0:00:38.9]}
28. f3 {[%clk 0:01:05.1]} 28... Re2 {[%clk 0:00:27]} 29. g4 {[%clk 0:01:00.6]}
29... Qf4 {[%clk 0:00:26.3]} 30. Rxd3 {[%clk 0:00:58.9]} 30... Qxh6 {[%clk
0:00:25.9]} 0-1

[Event "*** SCC Grand Prix: Titled Tuesday Blitz"]
[Site "Chess.com"]
[Date "2020.07.07"]
[Round "4"]
[White "Alexander_Zubov"]
[Black "Federtiu"]
[Result "1-0"]
[WhiteElo "2945"]
[BlackElo "2566"]
[TimeControl "180+1"]
[EndTime "10:38:45 PDT"]
[Termination "Alexander_Zubov won by resignation"]

1. d4 {[%clk 0:03:00.9]} 1... d5 {[%clk 0:03:00]} 2. Nf3 {[%clk 0:03:00.4]} 2...
Nf6 {[%clk 0:02:59.6]} 3. c4 {[%clk 0:02:59.7]} 3... e6 {[%clk 0:02:59.5]} 4.
Nc3 {[%clk 0:02:59.2]} 4... c6 {[%clk 0:02:58.4]} 5. e3 {[%clk 0:02:57.9]} 5...
Nbd7 {[%clk 0:02:52.7]} 6. Qc2 {[%clk 0:02:57.2]} 6... a5 {[%clk 0:02:52.9]} 7.
b3 {[%clk 0:02:52.1]} 7... Bd6 {[%clk 0:02:50.5]} 8. Be2 {[%clk 0:02:49.1]} 8...
O-O {[%clk 0:02:49.6]} 9. O-O {[%clk 0:02:48.4]} 9... Re8 {[%clk 0:02:39.9]} 10.
Bb2 {[%clk 0:02:44.9]} 10... dxc4 {[%clk 0:02:32.6]} 11. bxc4 {[%clk 0:02:42.5]}
11... e5 {[%clk 0:02:32.3]} 12. Rad1 {[%clk 0:02:16.1]} 12... exd4 {[%clk
0:02:31.7]} 13. Nxd4 {[%clk 0:02:07.8]} 13... Qc7 {[%clk 0:02:01]} 14. h3 {[%clk
0:01:56.9]} 14... Nc5 {[%clk 0:01:28.1]} 15. Ndb5 {[%clk 0:01:35.4]} 15... cxb5
{[%clk 0:01:26.9]} 16. Nxb5 {[%clk 0:01:35.4]} 16... Bh2+ {[%clk 0:01:27.4]} 17.
Kh1 {[%clk 0:01:35.9]} 17... Qb8 {[%clk 0:01:26]} 18. Bxf6 {[%clk 0:01:34.2]}
18... gxf6 {[%clk 0:01:26.9]} 19. g3 {[%clk 0:01:21.2]} 19... Bxg3 {[%clk
0:00:59]} 20. Rg1 {[%clk 0:01:19.3]} 20... Ne4 {[%clk 0:00:53.9]} 21. Bd3 {[%clk
0:01:15.3]} 21... Bg4 {[%clk 0:00:38.6]} 22. Bxe4 {[%clk 0:00:57.9]} 22... Bxd1
{[%clk 0:00:35.5]} 23. Bxh7+ {[%clk 0:00:57.4]} 23... Kh8 {[%clk 0:00:16.3]} 24.
Qxd1 {[%clk 0:00:56.3]} 24... Bxf2 {[%clk 0:00:16.5]} 25. Qh5 {[%clk 0:00:54.3]}
25... Bxg1 {[%clk 0:00:16.2]} 26. Bg6+ {[%clk 0:00:52]} 1-0

[Event "*** SCC Grand Prix: Titled Tuesday Blitz"]
[Site "Chess.com"]
[Date "2020.07.07"]
[Round "4"]
[White "if_name_main_a"]
[Black "talaicito"]
[Result "1-0"]
[WhiteElo "2401"]
[BlackElo "2143"]
[TimeControl "180+1"]
[EndTime "10:38:50 PDT"]
[Termination "if_name_main_a won on time"]

1. c4 {[%clk 0:03:00.9]} 1... e6 {[%clk 0:02:57.7]} 2. Nc3 {[%clk 0:03:01.2]}
2... f5 {[%clk 0:02:57.9]} 3. d4 {[%clk 0:03:00.4]} 3... Nf6 {[%clk 0:02:58]} 4.
Qc2 {[%clk 0:03:00.4]} 4... Bb4 {[%clk 0:02:58]} 5. Nf3 {[%clk 0:02:56.5]} 5...
O-O {[%clk 0:02:57.1]} 6. g3 {[%clk 0:02:56.9]} 6... d6 {[%clk 0:02:57.1]} 7.
Bg2 {[%clk 0:02:57.4]} 7... Bxc3+ {[%clk 0:02:53.1]} 8. Qxc3 {[%clk 0:02:56.8]}
8... Nc6 {[%clk 0:02:45.2]} 9. O-O {[%clk 0:02:55.8]} 9... a5 {[%clk 0:02:35.9]}
10. b3 {[%clk 0:02:47]} 10... Ne4 {[%clk 0:02:30.3]} 11. Qc2 {[%clk 0:02:45]}
11... e5 {[%clk 0:02:29.5]} 12. Bb2 {[%clk 0:02:43.2]} 12... Qe8 {[%clk
0:02:28.1]} 13. a3 {[%clk 0:02:35.1]} 13... Bd7 {[%clk 0:02:17.7]} 14. Rad1
{[%clk 0:02:30.4]} 14... Nf6 {[%clk 0:01:58.4]} 15. Qd2 {[%clk 0:02:10.7]} 15...
e4 {[%clk 0:01:49.3]} 16. Ng5 {[%clk 0:02:05.4]} 16... d5 {[%clk 0:01:36.4]} 17.
Nh3 {[%clk 0:02:01.3]} 17... a4 {[%clk 0:01:31.5]} 18. Nf4 {[%clk 0:01:52.5]}
18... axb3 {[%clk 0:01:21]} 19. cxd5 {[%clk 0:01:52.3]} 19... Ne7 {[%clk
0:01:19.3]} 20. Qb4 {[%clk 0:01:45.2]} 20... Nexd5 {[%clk 0:01:07.8]} 21. Qxb3
{[%clk 0:01:45.6]} 21... Bc6 {[%clk 0:00:48.4]} 22. Rc1 {[%clk 0:01:35.8]} 22...
g5 {[%clk 0:00:22.7]} 23. Nh3 {[%clk 0:01:34]} 23... h6 {[%clk 0:00:19.8]} 24.
e3 {[%clk 0:01:32.5]} 24... Qh5 {[%clk 0:00:15.9]} 25. f3 {[%clk 0:01:23.6]}
25... exf3 {[%clk 0:00:13.4]} 26. Bxf3 {[%clk 0:01:24]} 26... Qxh3 {[%clk
0:00:11.7]} 27. Rc5 {[%clk 0:01:06.5]} 27... Rad8 {[%clk 0:00:09.3]} 28. Rfc1
{[%clk 0:01:06.9]} 28... Kh7 {[%clk 0:00:03.1]} 29. Rxc6 {[%clk 0:01:07.3]}
29... bxc6 {[%clk 0:00:02.9]} 30. Rxc6 {[%clk 0:01:08]} 1-0

[Event "*** SCC Grand Prix: Titled Tuesday Blitz"]
[Site "Chess.com"]
[Date "2020.07.07"]
[Round "4"]
[White "Makswolf200817"]
[Black "peixe64"]
[Result "1-0"]
[WhiteElo "2511"]
[BlackElo "2324"]
[TimeControl "180+1"]
[EndTime "10:38:53 PDT"]
[Termination "Makswolf200817 won by resignation"]

1. d4 {[%clk 0:03:00.9]} 1... Nf6 {[%clk 0:03:00]} 2. c4 {[%clk 0:03:00.6]} 2...
g6 {[%clk 0:03:00.4]} 3. Nf3 {[%clk 0:02:59.9]} 3... Bg7 {[%clk 0:03:00.1]} 4.
g3 {[%clk 0:03:00.4]} 4... O-O {[%clk 0:03:00.1]} 5. Bg2 {[%clk 0:03:01]} 5...
d5 {[%clk 0:03:00.7]} 6. O-O {[%clk 0:03:01.5]} 6... c6 {[%clk 0:02:50.7]} 7.
cxd5 {[%clk 0:03:01.4]} 7... cxd5 {[%clk 0:02:49.2]} 8. Ne5 {[%clk 0:03:01.9]}
8... Nc6 {[%clk 0:02:45.2]} 9. Nc3 {[%clk 0:03:01.6]} 9... e6 {[%clk 0:02:44.2]}
10. Bf4 {[%clk 0:02:48.5]} 10... Nd7 {[%clk 0:02:33.9]} 11. Nxc6 {[%clk
0:02:46.5]} 11... bxc6 {[%clk 0:02:33.9]} 12. Na4 {[%clk 0:02:40.3]} 12... e5
{[%clk 0:02:24.9]} 13. dxe5 {[%clk 0:02:36.4]} 13... Nxe5 {[%clk 0:02:25.1]} 14.
Rc1 {[%clk 0:02:33.6]} 14... Be6 {[%clk 0:02:02.1]} 15. Nc5 {[%clk 0:02:22.4]}
15... Rc8 {[%clk 0:01:56.4]} 16. b3 {[%clk 0:02:20.2]} 16... g5 {[%clk
0:01:49.3]} 17. Be3 {[%clk 0:02:17.9]} 17... h6 {[%clk 0:01:44.8]} 18. Qd2
{[%clk 0:02:16.8]} 18... Qe7 {[%clk 0:01:38.1]} 19. Nxe6 {[%clk 0:02:13.6]}
19... Qxe6 {[%clk 0:01:34.5]} 20. Bxa7 {[%clk 0:02:12.1]} 20... Ra8 {[%clk
0:01:25.4]} 21. Bc5 {[%clk 0:02:11.7]} 21... Rfe8 {[%clk 0:01:24.5]} 22. a4
{[%clk 0:02:06.7]} 22... Nd7 {[%clk 0:01:09.5]} 23. Bd4 {[%clk 0:01:58.9]} 23...
Qxe2 {[%clk 0:00:58.8]} 24. Qxe2 {[%clk 0:01:59]} 24... Rxe2 {[%clk 0:00:58.6]}
25. Bxg7 {[%clk 0:01:59.7]} 25... Kxg7 {[%clk 0:00:59.3]} 26. Rxc6 {[%clk
0:02:00.1]} 26... Rb2 {[%clk 0:00:51.7]} 27. Bxd5 {[%clk 0:01:59.2]} 27... Rb8
{[%clk 0:00:47]} 28. Rc7 {[%clk 0:01:57.6]} 28... Rd8 {[%clk 0:00:46.2]} 29. a5
{[%clk 0:01:53.7]} 29... Ne5 {[%clk 0:00:46.4]} 30. Rd1 {[%clk 0:01:43]} 30...
Ng4 {[%clk 0:00:31.1]} 31. Rxf7+ {[%clk 0:01:41.6]} 31... Kh8 {[%clk 0:00:30.4]}
32. Rf5 {[%clk 0:01:36.5]} 32... Ra2 {[%clk 0:00:26.4]} 33. b4 {[%clk
0:01:35.5]} 33... Rb2 {[%clk 0:00:26.2]} 34. Rd4 {[%clk 0:01:30.6]} 34... h5
{[%clk 0:00:22.3]} 35. Rxg5 {[%clk 0:01:26.4]} 35... Nf6 {[%clk 0:00:20.8]} 36.
Rf5 {[%clk 0:01:25.7]} 36... Nxd5 {[%clk 0:00:19]} 37. Rfxd5 {[%clk 0:01:26.6]}
37... Re8 {[%clk 0:00:15.8]} 38. Rxh5+ {[%clk 0:01:26.3]} 38... Kg7 {[%clk
0:00:15.7]} 39. a6 {[%clk 0:01:23.3]} 39... Re1+ {[%clk 0:00:15.1]} 40. Kg2
{[%clk 0:01:23.3]} 40... Ree2 {[%clk 0:00:15.7]} 41. Rf4 {[%clk 0:01:22.5]} 1-0